Cogmind - Beta 13 @@@ ROGUE MODE // 2024.05.17 @ 18:10:32 Player: Bace Troncons Result: Destroyed by WS-RA0(R) with Subdweller Beam Cannon Performance ------------- Evolutions (0) 0 Regions Visited (2) 400 Robots Destroyed (34) 170 Value Destroyed (955) 955 Prototype IDs (10) 200 Alien Tech Used (0) 0 Bonus (0) 0 TOTAL SCORE: 1725 Bonus ------- None Cogmind --------- Core Integrity 0/250 Matter 286/300 Energy 250/250 System Corruption 1% Temperature Cool (9) Movement Treading (240) Ox1 Location -10/Subcaves Parts ------- > --- POWER (1) -------- Ion Engine > --- PROPULSION (2) --- Light Treads > --- UTILITY (2) ------ Large Storage Unit Weapon Shielding > --- WEAPON (2) ------- Barrage Gun Battle Cannon > --- INVENTORY (15) --- Ion Engine Flightbrick Sensor Array Signal Interpreter Terrain Scanner Targeting Computer Light Cannon Rocket Launcher Rocket Launcher Datajack Peak State ------------ > --- POWER ------------ Ion Engine > --- PROPULSION ------- Light Treads > --- UTILITY ---------- Large Storage Unit Weapon Shielding > --- WEAPON ----------- Barrage Gun Battle Cannon > --- INVENTORY -------- Ion Engine Flightbrick Sensor Array Signal Interpreter Terrain Scanner Targeting Computer Light Cannon Rocket Launcher Rocket Launcher Datajack [Rating: 13] Favorites ----------- Power Light Nuclear Core Engine Ion Engine Power Core Light Nuclear Core Propulsion Light Treads Treads Light Treads Utility Large Storage Unit Storage Large Storage Unit Protection Weapon Shielding Weapon Light Cannon Ballistic Gun Assault Rifle Ballistic Cannon Light Cannon Launcher Grenade Launcher Build | -11 -10 -10 ------- Run | Yrd Mat Sub Slots Evolved . | . . . Power . | . . . Propulsion . | . . . Utility . | . . . Weapon . | . . . Parts Attached 28 | 6 13 9 Power 4 | 1 2 1 Engine 3 | 1 1 1 Core 1 | . 1 . Reactor . | . . . Propulsion 6 | 2 3 1 Treads 6 | 2 3 1 Leg . | . . . Wheel . | . . . Hover . | . . . Flight . | . . . Utility 6 | 1 2 3 Device . | . . . Storage 2 | 1 1 . Processor . | . . . Hackware . | . . . Protection 4 | . 1 3 Artifact . | . . . Weapon 12 | 2 6 4 Energy Gun . | . . . Energy Cannon . | . . . Ballistic Gun 3 | 2 . 1 Ballistic Cannon 7 | . 4 3 Launcher 2 | . 2 . Special Weapon . | . . . Impact Weapon . | . . . Slashing Weapon . | . . . Piercing Weapon . | . . . Special Melee Weapon . | . . . Unidentified Prototypes . | . . . Parts Lost 7 | . 1 6 Power 1 | . . 1 Propulsion 2 | . . 2 Utility 2 | . . 2 Weapon 2 | . 1 1 Highest Loss Streak 1 | . 1 1 To Critical Strikes . | . . . Average Slot Usage (%) 94 | . 96 92 Engine 5 | . 5 6 Core 8 | . 8 8 Treads 24 | . 27 21 Storage 14 | . 14 14 Protection 12 | . 11 14 Ballistic Gun 7 | . 10 5 Ballistic Cannon 20 | . 17 22 Naked Turns . | . . . Heaviest Build 32 | 14 32 32 Greatest Support 40 | 40 40 40 Greatest Overweight (x) 2 | 2 1 1 Average Overweight (x) . | . . . Largest Inventory Capacity 15 | 8 15 15 Average Capacity 14 | 7 14 15 Most Carried 15 | 2 15 15 Average Carried 11 | 1 11 13 Final Capacity 15 | 8 15 15 Final Carried 14 | 2 14 13 Class Distribution -------------------- 100% | Mutant Dominant Class ---------------- Mutant | -10/Materials Mutant | -10/Subcaves Resources | -11 -10 -10 ----------- Run | Yrd Mat Sub Matter Collected 1572 | 209 785 578 Remotely . | . . . Salvage Created 987 | . 702 285 Parts 64 | . 41 23 Haulers Intercepted 1 | . 1 . Recyclers Shooed . | . . . Parts Field Recycled . | . . . Retrieved Matter . | . . . Parts Self-Destructed 14 | . . 14 Prevented . | . . . Kills | -11 -10 -10 ------- Run | Yrd Mat Sub Combat Hostiles Destroyed 25 | . 11 14 Guns 7 | . 7 . Cannons 18 | . 4 14 Classes Destroyed 9 | . 7 2 Worker 1 | . 1 . Hauler 1 | . 1 . Recycler 2 | . 2 . Mechanic 1 | . 1 . Operator 1 | . 1 . Watcher 3 | . 3 . Swarmer 4 | . . 4 Grunt 11 | . 11 . Subdweller 10 | . . 10 Best Kill Streak 4 | . 4 4 Combat Bots Only 4 | . 3 4 Max Kills in Single Turn 1 | . 1 1 Gunslinging . | . . . Exploded . | . . . Melee . | . . . Uniques/NPCs Destroyed . | . . . Combat | -11 -10 -10 -------- Run | Yrd Mat Sub Hostile Shots Fired 134 | . 58 76 Missed 27 | . 13 14 Damage Taken 1681 | . 668 1013 Core 266 | . 65 201 Absorbed by Shields . | . . . Redirected to Shielding 141 | . 31 110 Regen/Repaired (Parts) 166 | . 166 . Core Remaining (%) 100 | 100 . . Volleys Fired 143 | . 88 55 Largest 2 | . 2 2 Hottest 74 | . 70 74 Shots Fired 276 | . 165 111 Gun 106 | . 102 4 Cannon 168 | . 61 107 Launcher 2 | . 2 . Special . | . . . Kinetic 274 | . 163 111 Thermal . | . . . Explosive 2 | . 2 . Electromagnetic . | . . . Robot Hit Streak 13 | . 11 13 Robot Miss Streak 8 | . 8 4 Penetration Max . | . . . Secondary Targets . | . . . Shots Hit Robots 140 | . 92 48 Core Hits 53 | . 33 20 Critical Kills 1 | . 1 . Critical Parts Destroyed . | . . . Critical Strikes 9 | . 5 4 Destroy 1 | . 1 . Blast 8 | . 4 4 Melee Attacks . | . . . Impact . | . . . Slashing . | . . . Piercing . | . . . Sneak Attacks . | . . . Combat Hostiles . | . . . Follow-up Attacks . | . . . Damage Inflicted 2337 | . 1427 910 Guns 776 | . 776 . Cannons 1561 | . 651 910 Explosions . | . . . Melee . | . . . Ramming . | . . . Kinetic 2337 | . 1427 910 Thermal . | . . . Explosive . | . . . Electromagnetic . | . . . Impact . | . . . Slashing . | . . . Piercing . | . . . Highest Corruption 1 | . 1 1 Average Corruption 1 | . 1 1 Corruption Purged . | . . . Corruption Blocked . | . . . Effects 26 | . 14 12 Message Errors 5 | . 3 2 Matter Fused 10 | . 6 4 Heat Flow Errors 5 | . 3 2 Energy Discharges 2 | . . 2 Data Loss (minor) 2 | . 1 1 Misfires 1 | . . 1 Alerts 1 | . 1 . Overload Shots . | . . . Overflow Damage 48 | . 42 6 Projectiles 48 | . 42 6 Explosions . | . . . Melee . | . . . Knockbacks 17 | . 7 10 Impact . | . . . Kinetic 17 | . 7 10 Secondary . | . . . Self-Inflicted Damage 30 | . 30 . Shots 1 | . 1 . Rammed . | . . . Targets Rammed . | . . . Kicked . | . . . Crushed . | . . . Highest Temperature 223 | . 223 189 Average Temperature 42 | . 37 100 Received Heat Transfer 525 | . 354 171 Siege Activations . | . . . Robots Corrupted . | . . . Combat Hostiles . | . . . Parts Fried . | . . . Impact Corruptions . | . . . Robots Melted . | . . . Combat Hostiles . | . . . Parts Melted . | . . . Heat Transferred . | . . . Parts Sabotaged . | . . . Parts Stolen . | . . . Parts Stripped . | . . . Power Chain Reactions . | . . . Alert | -11 -10 -10 ------- Run | Yrd Mat Sub Peak Influence 145 | . 145 . Initial . | . . . Average 44 | . 46 . Maximum Alert Level . | . . . Low Security (%) 100 | 100 100 . Level 1 . | . . . Level 2 . | . . . Level 3 . | . . . Level 4 . | . . . Level 5 . | . . . High Security . | . . . Max Security . | . . . Squads Dispatched 2 | . 2 . Investigation 1 | . 1 . Extermination . | . . . Reinforcement 1 | . 1 . Assault . | . . . Garrison . | . . . Intercept . | . . . Searches Triggered . | . . . Construction Impeded . | . . . Haulers Reinforced . | . . . Active Scanning Responses . | . . . Cargo Convoy Interrupts . | . . . Stealth | -11 -10 -10 --------- Run | Yrd Mat Sub Distress Signals . | . . . Communications Jammed . | . . . Distress Signals . | . . . Times Spotted 41 | . 24 17 Peak Tracking Total 6 | . 3 6 Tactical Retreats 1 | . . 1 Traps | -11 -10 -10 ------- Run | Yrd Mat Sub Traps Triggered 4 | . 3 1 Indirectly . | . . . Trap Hack Attempts . | . . . Triggered . | . . . Disarmed . | . . . Reprogrammed . | . . . Reused . | . . . Traps Extracted . | . . . Installed . | . . . Triggered . | . . . Machines | -11 -10 -10 ---------- Run | Yrd Mat Sub Machines Disabled 2 | . 1 1 Max in Single Turn 1 | . 1 1 Machines Repaired . | . . . Machines Dismantled . | . . . Machines Sabotaged . | . . . Overloaded Fab Kills . | . . . Hacking | -11 -10 -10 --------- Run | Yrd Mat Sub Machines Accessed 7 | . 6 1 Terminals 5 | . 5 . Fabricators . | . . . Repair Stations 1 | . 1 . Recycling Units . | . . . Scanalyzers . | . . . Garrison Access . | . . . Total Hacks 17 | . 16 1 Successful 11 | . 10 1 Failed 6 | . 6 . Catastrophic 3 | . 3 . Database Lockouts . | . . . Manual 4 | . 4 . Terminals 9 | . 9 . Fabricators . | . . . Repair Stations 7 | . 7 . Recycling Units . | . . . Scanalyzers . | . . . Garrison Access . | . . . Terminal Hacks 6 | . 5 1 Record 1 | . 1 . Alert Level 1 | . 1 . Locate Traps 1 | . 1 . Hauler Manifests 1 | . 1 . Zone Layout 1 | . 1 . Derelict Proto ID Bank 1 | . . 1 Fabricator Hacks . | . . . Repair Station Hacks 5 | . 5 . Scan Component 3 | . 3 . Repair 2 | . 2 . Recycling Unit Hacks . | . . . Scanalyzer . | . . . Garrison Access Hacks . | . . . Unauthorized Hacks . | . . . Terminals . | . . . Fabricators . | . . . Repair Stations . | . . . Recycling Units . | . . . Scanalyzers . | . . . Garrison Access . | . . . Data Cores Recovered 1 | . 1 . Used 1 | . 1 . Hacking Detections 4 | . 4 . Full Trace Events . | . . . Feedback Events . | . . . Feedback Blocked . | . . . Robot Schematics Acquired . | . . . Robots Built . | . . . Authchips . | . . . Time . | . . . Total Robot Build Rating . | . . . Part Schematics Acquired . | . . . Parts Built . | . . . Authchips . | . . . Time . | . . . Total Part Build Rating . | . . . Parts Repaired 2 | . 2 . Time 62 | . 62 . Parts Recycled . | . . . Recycled Matter . | . . . Retrieved Matter . | . . . Retrieved Components . | . . . Parts Scanalyzed . | . . . Part Schematics Acquired . | . . . Parts Damaged . | . . . Bothacking | -11 -10 -10 ------------ Run | Yrd Mat Sub Used RIF Installer . | . . . Robots Hacked . | . . . Non-combat . | . . . Combat . | . . . Robot Hacks Applied . | . . . Relay Couplers Released . | . . . Fabnet Peak Effective % . | . . . Robots Rewired . | . . . Allies Hacked . | . . . Hacks Repelled . | . . . Allies | -11 -10 -10 -------- Run | Yrd Mat Sub Total Allies . | . . . Largest Group . | . . . Highest-Rated Group . | . . . Highest-Rated Ally . | . . . Total Orders . | . . . Ally Attacks . | . . . Total Damage . | . . . Kills . | . . . Allies Corrupted . | . . . Allies Melted . | . . . Intel | -11 -10 -10 ------- Run | Yrd Mat Sub Robot Analysis Total . | . . . Derelict Logs Recovered 3 | . . 3 Drone Launches . | . . . Drone Recoveries . | . . . Exploration | -11 -10 -10 ------------- Run | Yrd Mat Sub Turns Passed 3744 | 75 1774 1895 Spaces Moved 1714 | 42 807 865 Core 3 | 3 . . Treads 1711 | 39 807 865 Legs . | . . . Wheels . | . . . Hover . | . . . Flight . | . . . Fastest Speed 50 | 50 160 160 Average Speed 176 | 154 160 192 Slowest Speed 240 | 160 240 240 Overloaded Moves . | . . . Propulsion Burnouts . | . . . Robots Hopped . | . . . Cave-ins Triggered . | . . . Exploration Rate (%) 57 | 4 100 68 Regions Visited 2 Branch Regions 1 Pre-discovered Areas 1 | . . 1 Known Exits Taken . | . . . Unknown Exits Taken 2 | 1 1 . Scrap Searched 3 | . . 3 Spaces Dug 8 | . 8 . Terrain Destroyed 19 | . 18 1 Melee . | . . . Projectile 1 | . . 1 AOE 18 | . 18 . Terrain Rammed . | . . . Walls Destroyed . | . . . Machines Disabled . | . . . Actions | -11 -10 -10 --------- Run | Yrd Mat Sub Total 2158 | 49 1123 986 Wait 239 | . 189 50 Move 1712 | 41 806 865 Hop . | . . . Pick Up 20 | 2 17 1 Fast Attach 14 | 6 5 3 Attach 7 | . 2 5 Detach 6 | . 3 3 Swap 7 | . 6 1 Drop 10 | . 7 3 Fire 143 | . 88 55 Melee . | . . . Ram . | . . . Kick . | . . . Crush . | . . . Escape Stasis . | . . . Rewire . | . . . Trap . | . . . Miscellaneous . | . . . Route ------- -11/Scrapyard -10/Materials (discovered 5 exits: [*Mat x3] / [*Min] / *Sub) -10/Subcaves (discovered 3 exits: [*Mat x2] / [*Rec]) History --------- Turn | Location | Event 37 | -11/Scrapyard | Discovered new exit (range 15) 76 | -11/Scrapyard | Entered Materials 313 | -10/Materials | Build established: Mutant 407 | -10/Materials | Discovered new exit (range 16) 518 | -10/Materials | Repaired Lgt. Treads 566 | -10/Materials | Repaired Broken Lgt. Treads 1017 | -10/Materials | Discovered new exit (range 8) 1297 | -10/Materials | Discovered new exit (range 4) 1455 | -10/Materials | Discovered new exit (range 6) 1837 | -10/Materials | Discovered new exit (range 10) 1850 | -10/Materials | Entered Subcaves 2001 | -10/Subcaves | Learned 2 Materials zone layouts 2082 | -10/Subcaves | Shifting Twisted Machinery released Battle Cannon 2091 | -10/Subcaves | Shifting Twisted Machinery released Flamer 2170 | -10/Subcaves | Discovered new exit (range 11) 2293 | -10/Subcaves | Discovered new exit (range 16) 2391 | -10/Subcaves | Learned 4 Materials zone layouts 2504 | -10/Subcaves | Discovered new exit (range 14) 2506 | -10/Subcaves | Ambushed by Subdwellers from Twisted Machinery 2913 | -10/Subcaves | Core integrity fell below 50% 2934 | -10/Subcaves | Core integrity fell below 20% 2957 | -10/Subcaves | Learned location of Storage (-9) 3537 | -10/Subcaves | Visited 4L-MR0's lab 3566 | -10/Subcaves | Found Flightbrick 3745 | -10/Subcaves | Destroyed by WS-RA0(R) with Subdweller Beam Cannon Last Messages --------------- Meta Core Arachnoskeleton Cargo Legs Tripod Weapons Platform Flightbrick Gun Armor Power Bank Rainbow Chip VL-GR5's Exoskeleton "Deathgrip" Powered Cannon 03550_ Testing Chamber breached. 03558_ Dropped Lgt. Cannon. 03560_ Dropped Weapon Shielding. 03565_ 4L-MR0 mumbles: "I'm surprised some of them are even willing to come in here given their fear of my usual visitors." 03566_ Acquired Flightbrick. 03593_ Acquired 24 matter. 03678_ System corrupted: Heat flow error (+229). 03739_ System corrupted: Matter fused (-10). Map ----- +----------------------------------------------------+ | ????????????????## ### #??????????????## ### | | ?????????????????## ##?????????????# ## | | ??????????????????# ##???????????## ### | | ??????????????????## #######?????# ##?# | | ???????????????????### ### #?????# ##??? | | ?????????????????????## #### #?????# #??## | | ?????????????????????## #### #?###?# ##?## | | ???????????????????### ### ##### ### ##?## | | ??????????????????## ## ## #### | | ??????????????????# ## ## | | ??????????????????# ### | | ??????????????????# ## ## | | ??????????????????# ?# | | ??????????????????# ## ### | | ??????????????????# # #?# | | ??????????????????# ##### #### ##### # | | ??????????????????## #????# ##?# #???### | | ???????????????????##?????# ####??## ###?????? | | ????????????????????????### #??????## #???????? | | ???????????????????????## #???????## #???????? | | ???????????????????????# #????????###???????? | | ???????????????????????## ## #?????????????????? | | ???????????????????????## #### #?????????????????? | | ???????????????????????# #?? #?????????????????? | | ???????????????????????## ##?? ?????????????????? | | ???????????????????????##@#??? ##????????????????? | | ??????????????????????## ### #?????????????????? | | ?????????????????????## #????????????????## | | ?????????????????????# ##???????????????## | | ????????????????????# ####????????????????# | | ??????????????????# R #???????????????????## | | ???????????????? " #????????????????????# | | ??????????????# ###????????????????????# | | ??????????????# ##??????????????????????# | | ????????????? ## #????????????????????????# | | ???????????? #?###?????????????????????????# | | ???????????? ??????????????????????????????## | | ????????????? ????????????????????????????????# | | ????????????? ?????????????????????????????????? | | ?????????????????????????????????????????????????? | | ?????????????????????????????????????????????????? | | ?????????????????????????????????????????????????? | | ?????????????????????????????????????????????????? | | ?????????????????????????????????????????????????? | | ?????????????????????????????????????????????????? | | ?????????????????????????????????????????????????? | | ?????????????????????????????????????????????????? | | ?????????????????????????????????????????????????? | | ?????????????????????????????????????????????????? | | ?????????????????????????????????????????????????? | +----------------------------------------------------+ Best States ------------- Heat Dissipation 25 Energy Generation 14 Energy Capacity 250 Matter Stores 300 Matter Capacity 300 Sight Range 16 Terrain Scan Density 10 Weapon Shielding 33 Evasion (%) 40 Recoil Reduction 2 Item Schematics ----------------- None Robot Schematics ------------------ None Fabricated ------------ Nothing Alien Tech Used ----------------- None Achievements -------------- None Challenges ------------ None Game ------ Seed RecoilBarrageField Manual? 0 Play Time 00:24:49 Cumulative 73.4 hours Start 2024.05.17 @ 17:41:23 End 2024.05.17 @ 18:10:32 Sessions 1 Manual Loads 0 Difficulty Rogue Special Mode None Game No. 111 Rogue 111 Adventurer 0 Explorer 0 Win Type - Total 1 Types 1/0/0/0/0/0/0/0/0 Lore% 37 Gallery% 42 Achievement% 31 Wizard Run 0 Options --------- Layout 1 ASCII 0 Keyboard 1 Movement Numpad Keybinds 0 Fullscreen 1 Font 24/Smallcaps Map View 50x35 Zoom Use 0% Tactical HUD 1 Map Filters NONE Filters NONE Steam 1 RUN: 5c081972-536e-404e-8420-2ae055ffdc69